[Event "December 5 Early 2023"]
[Site "https://www.chess.com"]
[Date "2023.12.05"]
[Round "6"]
[White "Kovalevsky, Stanislav"]
[Black "Cagara, Paulina"]
[Result "1/2-1/2"]
[Board "156"]
[TimeControl "180+1"]
[WhiteFideId "13508598"]
[BlackFideId "1124870"]
[WhiteElo "2486"]
[BlackElo "2221"]
[WhiteTeam "FID"]
[BlackTeam "POL"]
[WhiteClock "0:00:23"]
[BlackClock "0:00:37"]

1. e4 {[%clk 0:03:00]}  c6 {[%clk 0:02:59]} 2. c4 {[%clk 0:03:00]}  d5 {[%clk 0:02:59]} 3. cxd5 {[%clk 0:03:01]}  cxd5 {[%clk 0:02:59]} 4. exd5 {[%clk 0:03:02]}  Nf6 {[%clk 0:02:59]} 5. Nc3 {[%clk 0:03:01]}  Nxd5 {[%clk 0:02:58]} 6. Bc4 {[%clk 0:03:02]}  e6 {[%clk 0:02:56]} 7. Nf3 {[%clk 0:03:01]}  Nc6 {[%clk 0:02:55]} 8. O-O {[%clk 0:03:01]}  Be7 {[%clk 0:02:52]} 9. d4 {[%clk 0:03:01]}  O-O {[%clk 0:02:51]} 10. Qe2 {[%clk 0:02:59]}  Nf6 {[%clk 0:02:49]} 11. Rd1 {[%clk 0:02:56]}  Nb4 {[%clk 0:02:46]} 12. Bg5 {[%clk 0:02:35]}  b6 {[%clk 0:02:40]} 13. a3 {[%clk 0:02:09]}  Nbd5 {[%clk 0:02:38]} 14. Bxf6 {[%clk 0:02:06]}  Bxf6 {[%clk 0:02:37]} 15. Ne4 {[%clk 0:02:06]}  Be7 {[%clk 0:02:34]} 16. h4 {[%clk 0:01:56]}  Bb7 {[%clk 0:02:31]} 17. h5 {[%clk 0:01:52]}  h6 {[%clk 0:02:30]} 18. Bd3 {[%clk 0:01:51]}  Nf4 {[%clk 0:02:27]} 19. Qe3 {[%clk 0:01:49]}  Nxd3 {[%clk 0:02:26]} 20. Rxd3 {[%clk 0:01:46]}  Qd5 {[%clk 0:02:17]} 21. Nc3 {[%clk 0:01:17]}  Qxh5 {[%clk 0:02:14]} 22. d5 {[%clk 0:01:18]}  Bc5 {[%clk 0:02:11]} 23. Qe5 {[%clk 0:01:10]}  Qxe5 {[%clk 0:02:02]} 24. Nxe5 {[%clk 0:01:11]}  Rad8 {[%clk 0:01:53]} 25. Rad1 {[%clk 0:01:04]}  exd5 {[%clk 0:01:52]} 26. Nxd5 {[%clk 0:01:03]}  Kh7 {[%clk 0:01:34]} 27. b4 {[%clk 0:00:47]}  Rxd5 {[%clk 0:01:28]} 28. Rxd5 {[%clk 0:00:47]}  Bxd5 {[%clk 0:01:28]} 29. Rxd5 {[%clk 0:00:47]}  Be7 {[%clk 0:01:24]} 30. Rd7 {[%clk 0:00:46]}  Bf6 {[%clk 0:01:22]} 31. Nxf7 {[%clk 0:00:44]}  Bb2 {[%clk 0:01:20]} 32. a4 {[%clk 0:00:41]}  a5 {[%clk 0:01:15]} 33. b5 {[%clk 0:00:39]}  Rc8 {[%clk 0:01:13]} 34. g3 {[%clk 0:00:36]}  Rc4 {[%clk 0:01:06]} 35. Rb7 {[%clk 0:00:33]}  Rxa4 {[%clk 0:01:04]} 36. Rxb6 {[%clk 0:00:32]}  Ra2 {[%clk 0:01:01]} 37. Ra6 {[%clk 0:00:22]}  Bd4 {[%clk 0:00:57]} 38. Nd6 {[%clk 0:00:22]}  Bxf2+ {[%clk 0:00:54]} 39. Kg2 {[%clk 0:00:21]}  Bc5+ {[%clk 0:00:49]} 40. Kf3 {[%clk 0:00:21]}  Bxd6 {[%clk 0:00:48]} 41. Rxd6 {[%clk 0:00:22]}  a4 {[%clk 0:00:46]} 42. Ra6 {[%clk 0:00:20]}  a3 {[%clk 0:00:47]} 43. b6 {[%clk 0:00:20]}  Rb2 {[%clk 0:00:46]} 44. Rxa3 {[%clk 0:00:20]}  Rxb6 {[%clk 0:00:46]} 45. Kf4 {[%clk 0:00:20]}  Rb4+ {[%clk 0:00:45]} 46. Kf5 {[%clk 0:00:20]}  h5 {[%clk 0:00:43]} 47. Kg5 {[%clk 0:00:20]}  Rb5+ {[%clk 0:00:43]} 48. Kh4 {[%clk 0:00:19]}  Kh6 {[%clk 0:00:43]} 49. Ra6+ {[%clk 0:00:19]}  g6 {[%clk 0:00:43]} 50. Ra8 {[%clk 0:00:20]}  g5+ {[%clk 0:00:41]} 51. Kh3 {[%clk 0:00:20]}  Rb6 {[%clk 0:00:40]} 52. Ra3 {[%clk 0:00:18]}  Kg6 {[%clk 0:00:39]} 53. Kg2 {[%clk 0:00:18]}  Kf5 {[%clk 0:00:37]} 54. Ra5+ {[%clk 0:00:19]}  Kg4 {[%clk 0:00:37]} 55. Ra4+ {[%clk 0:00:19]}  Kf5 {[%clk 0:00:37]} 56. Ra5+ {[%clk 0:00:20]}  Kg6 {[%clk 0:00:37]} 57. Ra4 {[%clk 0:00:20]}  Rb3 {[%clk 0:00:35]} 58. Ra2 {[%clk 0:00:20]}  h4 {[%clk 0:00:35]} 59. gxh4 {[%clk 0:00:20]}  gxh4 {[%clk 0:00:35]} 60. Kh2 {[%clk 0:00:21]}  Kg5 {[%clk 0:00:35]} 61. Ra5+ {[%clk 0:00:21]}  Kg4 {[%clk 0:00:35]} 62. Ra4+ {[%clk 0:00:21]}  Kg5 {[%clk 0:00:36]} 63. Ra5+ {[%clk 0:00:22]}  Kg4 {[%clk 0:00:36]} 64. Ra4+ {[%clk 0:00:23]}  Kg5 {[%clk 0:00:37]} 65. Ra5+ {[%clk 0:00:23]} 1/2-1/2

[Event "December 5 Early 2023"]
[Site "https://www.chess.com"]
[Date "2023.12.05"]
[Round "6"]
[White "Lehtosaari, Mauri"]
[Black "Osmonbekov, Talaibek"]
[Result "1-0"]
[Board "158"]
[TimeControl "180+1"]
[WhiteFideId "501999"]
[BlackFideId "2017253"]
[WhiteElo "2479"]
[BlackElo "2208"]
[WhiteTeam "FIN"]
[BlackTeam "USA"]
[WhiteClock "0:01:02"]
[BlackClock "0:00:00"]

1. d4 {[%clk 0:03:00]}  e6 {[%clk 0:02:59]} 2. c4 {[%clk 0:03:01]}  f5 {[%clk 0:03:00]} 3. g3 {[%clk 0:02:59]}  Nf6 {[%clk 0:03:00]} 4. Bg2 {[%clk 0:03:00]}  Be7 {[%clk 0:03:01]} 5. Nh3 {[%clk 0:02:58]}  O-O {[%clk 0:03:00]} 6. O-O {[%clk 0:02:58]}  d6 {[%clk 0:03:00]} 7. Nc3 {[%clk 0:02:58]}  e5 {[%clk 0:02:53]} 8. dxe5 {[%clk 0:02:53]}  dxe5 {[%clk 0:02:53]} 9. Nb5 {[%clk 0:02:48]}  h6 {[%clk 0:02:40]} 10. Be3 {[%clk 0:02:23]}  a6 {[%clk 0:02:33]} 11. Qxd8 {[%clk 0:02:22]}  Bxd8 {[%clk 0:02:30]} 12. Nc3 {[%clk 0:02:14]}  c6 {[%clk 0:02:18]} 13. Bc5 {[%clk 0:02:07]}  Re8 {[%clk 0:02:15]} 14. Rfd1 {[%clk 0:02:01]}  Nbd7 {[%clk 0:02:02]} 15. Ba3 {[%clk 0:01:56]}  Bb6 {[%clk 0:01:32]} 16. Na4 {[%clk 0:01:49]}  Ba7 {[%clk 0:01:31]} 17. c5 {[%clk 0:01:44]}  g5 {[%clk 0:01:22]} 18. Kf1 {[%clk 0:01:41]}  Kf7 {[%clk 0:00:49]} 19. Ng1 {[%clk 0:01:36]}  e4 {[%clk 0:00:37]} 20. e3 {[%clk 0:01:35]}  Ne5 {[%clk 0:00:35]} 21. Rac1 {[%clk 0:01:30]}  Be6 {[%clk 0:00:34]} 22. b3 {[%clk 0:01:24]}  Nd3 {[%clk 0:00:30]} 23. Rc2 {[%clk 0:01:22]}  Rad8 {[%clk 0:00:26]} 24. Ne2 {[%clk 0:01:16]}  Ng4 {[%clk 0:00:23]} 25. Nd4 {[%clk 0:01:14]}  Nxh2+ {[%clk 0:00:22]} 26. Kg1 {[%clk 0:01:14]}  Ng4 {[%clk 0:00:19]} 27. Nxe6 {[%clk 0:01:12]}  Kxe6 {[%clk 0:00:18]} 28. Rcd2 {[%clk 0:01:13]}  Nge5 {[%clk 0:00:16]} 29. Bb2 {[%clk 0:01:06]}  Rd5 {[%clk 0:00:15]} 30. Bxe5 {[%clk 0:01:05]}  Nxe5 {[%clk 0:00:15]} 31. Rxd5 {[%clk 0:01:04]}  cxd5 {[%clk 0:00:14]} 32. b4 {[%clk 0:01:05]}  Rd8 {[%clk 0:00:13]} 33. Bf1 {[%clk 0:01:04]}  Nc6 {[%clk 0:00:11]} 34. a3 {[%clk 0:01:04]}  d4 {[%clk 0:00:11]} 35. exd4 {[%clk 0:01:04]}  Nxd4 {[%clk 0:00:11]} 36. Kg2 {[%clk 0:01:04]}  Rd7 {[%clk 0:00:08]} 37. Bc4+ {[%clk 0:01:05]}  Ke7 {[%clk 0:00:08]} 38. Nc3 {[%clk 0:01:05]}  Nf3 {[%clk 0:00:04]} 39. Rxd7+ {[%clk 0:01:04]}  Kxd7 {[%clk 0:00:04]} 40. Nd5 {[%clk 0:01:03]}  Bb8 {[%clk 0:00:00]} 41. Nf6+ {[%clk 0:01:02]} 1-0

[Event "December 5 Early 2023"]
[Site "https://www.chess.com"]
[Date "2023.12.05"]
[Round "6"]
[White "Pourkashiyan, Atousa"]
[Black "Dimitrijevic, Darko"]
[Result "1-0"]
[Board "159"]
[TimeControl "180+1"]
[WhiteFideId "12502014"]
[BlackFideId "14500892"]
[WhiteElo "2477"]
[BlackElo "2201"]
[WhiteTeam "USA"]
[BlackTeam "CRO"]
[WhiteClock "0:00:52"]
[BlackClock "0:00:48"]

1. Nf3 {[%clk 0:02:49]}  g6 {[%clk 0:02:58]} 2. g3 {[%clk 0:02:45]}  Bg7 {[%clk 0:02:58]} 3. Bg2 {[%clk 0:02:46]}  b6 {[%clk 0:02:58]} 4. O-O {[%clk 0:02:47]}  Bb7 {[%clk 0:02:58]} 5. d3 {[%clk 0:02:47]}  Nf6 {[%clk 0:02:57]} 6. e4 {[%clk 0:02:47]}  O-O {[%clk 0:02:57]} 7. e5 {[%clk 0:02:47]}  Ne8 {[%clk 0:02:56]} 8. d4 {[%clk 0:02:47]}  d5 {[%clk 0:02:52]} 9. Bg5 {[%clk 0:02:43]}  h6 {[%clk 0:02:51]} 10. Be3 {[%clk 0:02:41]}  c6 {[%clk 0:02:47]} 11. Qd2 {[%clk 0:02:31]}  Kh7 {[%clk 0:02:45]} 12. Nc3 {[%clk 0:02:28]}  Nc7 {[%clk 0:02:42]} 13. Ne2 {[%clk 0:02:25]}  Ne6 {[%clk 0:02:40]} 14. h4 {[%clk 0:02:24]}  h5 {[%clk 0:02:34]} 15. Nf4 {[%clk 0:02:18]}  Nxf4 {[%clk 0:02:28]} 16. Bxf4 {[%clk 0:02:19]}  Na6 {[%clk 0:02:26]} 17. Ng5+ {[%clk 0:02:18]}  Kg8 {[%clk 0:02:25]} 18. Bf3 {[%clk 0:02:19]}  Nc7 {[%clk 0:02:24]} 19. Qd3 {[%clk 0:02:19]}  Qd7 {[%clk 0:02:21]} 20. Bxh5 {[%clk 0:02:18]}  Ne6 {[%clk 0:02:12]} 21. Bg4 {[%clk 0:02:16]}  Nxf4 {[%clk 0:02:13]} 22. Bxd7 {[%clk 0:02:14]}  Nxd3 {[%clk 0:02:12]} 23. cxd3 {[%clk 0:02:15]}  Rfd8 {[%clk 0:01:56]} 24. Bg4 {[%clk 0:02:13]}  e6 {[%clk 0:01:55]} 25. h5 {[%clk 0:02:09]}  gxh5 {[%clk 0:01:52]} 26. Bxh5 {[%clk 0:02:09]}  Rd7 {[%clk 0:01:52]} 27. f4 {[%clk 0:02:08]}  Bh6 {[%clk 0:01:51]} 28. Nf3 {[%clk 0:02:06]}  Ba6 {[%clk 0:01:47]} 29. Rad1 {[%clk 0:02:04]}  Rc8 {[%clk 0:01:46]} 30. Kf2 {[%clk 0:02:04]}  c5 {[%clk 0:01:46]} 31. Rh1 {[%clk 0:02:04]}  Bf8 {[%clk 0:01:40]} 32. Rh4 {[%clk 0:01:57]}  cxd4 {[%clk 0:01:30]} 33. Rg4+ {[%clk 0:01:55]}  Bg7 {[%clk 0:01:27]} 34. Nxd4 {[%clk 0:01:53]}  Rdc7 {[%clk 0:01:22]} 35. f5 {[%clk 0:01:46]}  Kf8 {[%clk 0:01:18]} 36. f6 {[%clk 0:01:32]}  Bh6 {[%clk 0:01:16]} 37. Rh4 {[%clk 0:01:22]}  Rc1 {[%clk 0:01:15]} 38. Rxc1 {[%clk 0:01:14]}  Rxc1 {[%clk 0:01:13]} 39. Bxf7 {[%clk 0:01:15]}  Kxf7 {[%clk 0:01:12]} 40. Rxh6 {[%clk 0:01:14]}  Bxd3 {[%clk 0:01:12]} 41. Rh8 {[%clk 0:01:07]}  Rf1+ {[%clk 0:01:01]} 42. Ke3 {[%clk 0:00:57]}  Bf5 {[%clk 0:00:55]} 43. Nf3 {[%clk 0:00:55]}  Rb1 {[%clk 0:00:51]} 44. Ng5+ {[%clk 0:00:52]}  Kg6 {[%clk 0:00:51]} 45. f7 {[%clk 0:00:53]}  Kxg5 {[%clk 0:00:49]} 46. f8=Q {[%clk 0:00:53]}  Rxb2 {[%clk 0:00:49]} 47. Qh6+ {[%clk 0:00:52]}  Kg4 {[%clk 0:00:48]} 48. Qf4# {[%clk 0:00:52]} 1-0

[Event "December 5 Early 2023"]
[Site "https://www.chess.com"]
[Date "2023.12.05"]
[Round "6"]
[White "Buksa, Nataliya"]
[Black "Michalski, Olaf"]
[Result "1-0"]
[Board "160"]
[TimeControl "180+1"]
[WhiteFideId "14123622"]
[BlackFideId "1106740"]
[WhiteElo "2474"]
[BlackElo "2199"]
[WhiteTeam "UKR"]
[BlackTeam "POL"]
[WhiteClock "0:01:55"]
[BlackClock "0:00:22"]

1. d4 {[%clk 0:03:00]}  d6 {[%clk 0:02:59]} 2. Nc3 {[%clk 0:03:01]}  Nd7 {[%clk 0:02:55]} 3. e4 {[%clk 0:03:01]}  e5 {[%clk 0:02:55]} 4. Nf3 {[%clk 0:03:02]}  Ngf6 {[%clk 0:02:55]} 5. Bc4 {[%clk 0:03:03]}  Be7 {[%clk 0:02:53]} 6. O-O {[%clk 0:03:03]}  O-O {[%clk 0:02:53]} 7. Re1 {[%clk 0:03:03]}  c6 {[%clk 0:02:49]} 8. a4 {[%clk 0:03:04]}  a5 {[%clk 0:02:48]} 9. h3 {[%clk 0:03:03]}  Qc7 {[%clk 0:02:29]} 10. b3 {[%clk 0:03:03]}  b6 {[%clk 0:02:24]} 11. Bb2 {[%clk 0:03:03]}  Bb7 {[%clk 0:02:25]} 12. Bd3 {[%clk 0:03:04]}  Rfe8 {[%clk 0:02:12]} 13. Ne2 {[%clk 0:03:04]}  g6 {[%clk 0:02:03]} 14. Ng3 {[%clk 0:02:57]}  Bf8 {[%clk 0:01:52]} 15. c4 {[%clk 0:02:57]}  exd4 {[%clk 0:01:24]} 16. Nxd4 {[%clk 0:02:57]}  Bg7 {[%clk 0:01:24]} 17. Bc2 {[%clk 0:02:57]}  Nc5 {[%clk 0:01:24]} 18. Qd2 {[%clk 0:02:40]}  Re7 {[%clk 0:01:21]} 19. Re2 {[%clk 0:02:39]}  Rae8 {[%clk 0:01:21]} 20. Rae1 {[%clk 0:02:40]}  h5 {[%clk 0:01:05]} 21. Ngf5 {[%clk 0:02:06]}  Ncxe4 {[%clk 0:00:28]} 22. Nxe7+ {[%clk 0:01:56]}  Rxe7 {[%clk 0:00:23]} 23. Bxe4 {[%clk 0:01:55]}  Nxe4 {[%clk 0:00:22]} 24. Rxe4 {[%clk 0:01:55]} 1-0

[Event "December 5 Early 2023"]
[Site "https://www.chess.com"]
[Date "2023.12.05"]
[Round "6"]
[White "Wieczorek, Zbigniew"]
[Black "Iljin, Timofey"]
[Result "0-1"]
[Board "161"]
[TimeControl "180+1"]
[WhiteFideId "1102001"]
[BlackFideId "14110180"]
[WhiteElo "2207"]
[BlackElo "2470"]
[WhiteTeam "POL"]
[BlackTeam "UKR"]
[WhiteClock "0:02:06"]
[BlackClock "0:02:13"]

1. d4 {[%clk 0:02:59]}  f5 {[%clk 0:02:56]} 2. Nc3 {[%clk 0:02:58]}  Nf6 {[%clk 0:02:55]} 3. Bg5 {[%clk 0:02:58]}  d5 {[%clk 0:02:56]} 4. Bxf6 {[%clk 0:02:58]}  exf6 {[%clk 0:02:57]} 5. e3 {[%clk 0:02:58]}  Be6 {[%clk 0:02:56]} 6. Bd3 {[%clk 0:02:58]}  Qd7 {[%clk 0:02:57]} 7. Nge2 {[%clk 0:02:55]}  Nc6 {[%clk 0:02:51]} 8. a3 {[%clk 0:02:54]}  g6 {[%clk 0:02:37]} 9. Nf4 {[%clk 0:02:52]}  Bf7 {[%clk 0:02:38]} 10. h4 {[%clk 0:02:52]}  h5 {[%clk 0:02:35]} 11. Qf3 {[%clk 0:02:52]}  O-O-O {[%clk 0:02:35]} 12. O-O {[%clk 0:02:27]}  Kb8 {[%clk 0:02:34]} 13. b4 {[%clk 0:02:23]}  g5 {[%clk 0:02:33]} 14. Nfe2 {[%clk 0:02:19]}  Be6 {[%clk 0:02:28]} 15. Kh1 {[%clk 0:02:15]}  Bd6 {[%clk 0:02:19]} 16. Na4 {[%clk 0:02:06]}  g4 {[%clk 0:02:13]} 0-1

[Event "December 5 Early 2023"]
[Site "https://www.chess.com"]
[Date "2023.12.05"]
[Round "6"]
[White "Parra Gomez, Adrian"]
[Black "Sami, Sama"]
[Result "0-1"]
[Board "166"]
[TimeControl "180+1"]
[WhiteFideId "3513106"]
[BlackFideId "4802926"]
[WhiteElo "2424"]
[BlackElo "2259"]
[WhiteTeam "CUB"]
[BlackTeam "IRQ"]
[WhiteClock "0:00:00"]
[BlackClock "0:00:35"]

1. d4 {[%clk 0:03:00]}  Nf6 {[%clk 0:02:59]} 2. c4 {[%clk 0:03:01]}  e6 {[%clk 0:03:00]} 3. Nc3 {[%clk 0:03:01]}  Bb4 {[%clk 0:03:00]} 4. f3 {[%clk 0:03:01]}  c5 {[%clk 0:03:00]} 5. d5 {[%clk 0:03:01]}  b5 {[%clk 0:03:00]} 6. e4 {[%clk 0:03:01]}  d6 {[%clk 0:02:58]} 7. Ne2 {[%clk 0:02:53]}  bxc4 {[%clk 0:02:56]} 8. Nf4 {[%clk 0:02:53]}  e5 {[%clk 0:02:55]} 9. Ne2 {[%clk 0:02:53]}  Nbd7 {[%clk 0:02:56]} 10. Ng3 {[%clk 0:02:53]}  Nb6 {[%clk 0:02:56]} 11. Be2 {[%clk 0:02:52]}  Ng8 {[%clk 0:02:55]} 12. O-O {[%clk 0:02:50]}  Ne7 {[%clk 0:02:55]} 13. f4 {[%clk 0:02:49]}  exf4 {[%clk 0:02:54]} 14. Bxf4 {[%clk 0:02:49]}  Ng6 {[%clk 0:02:51]} 15. Nf5 {[%clk 0:02:30]}  Nxf4 {[%clk 0:02:47]} 16. Rxf4 {[%clk 0:02:22]}  Bxc3 {[%clk 0:02:40]} 17. bxc3 {[%clk 0:02:20]}  Bxf5 {[%clk 0:02:40]} 18. exf5 {[%clk 0:02:19]}  O-O {[%clk 0:02:40]} 19. f6 {[%clk 0:02:18]}  gxf6 {[%clk 0:02:32]} 20. Bxc4 {[%clk 0:00:54]}  Nxc4 {[%clk 0:02:20]} 21. Rxc4 {[%clk 0:00:55]}  f5 {[%clk 0:02:20]} 22. Qf3 {[%clk 0:00:49]}  Qf6 {[%clk 0:02:16]} 23. Rf1 {[%clk 0:00:49]}  Rfe8 {[%clk 0:02:09]} 24. Rg4+ {[%clk 0:00:33]}  Kf8 {[%clk 0:01:47]} 25. Qg3 {[%clk 0:00:19]}  Qe5 {[%clk 0:01:14]} 26. Rg8+ {[%clk 0:00:10]}  Ke7 {[%clk 0:01:13]} 27. Qg5+ {[%clk 0:00:07]}  Kd7 {[%clk 0:01:11]} 28. Rxf5 {[%clk 0:00:05]}  Qe1+ {[%clk 0:00:56]} 29. Rf1 {[%clk 0:00:05]}  Qxf1+ {[%clk 0:00:49]} 30. Kxf1 {[%clk 0:00:06]}  Rxg8 {[%clk 0:00:49]} 31. Qf5+ {[%clk 0:00:07]}  Ke7 {[%clk 0:00:48]} 32. Qe4+ {[%clk 0:00:06]}  Kd8 {[%clk 0:00:45]} 33. Qxh7 {[%clk 0:00:05]}  Ke7 {[%clk 0:00:39]} 34. Qe4+ {[%clk 0:00:06]}  Kd7 {[%clk 0:00:39]} 35. Qf5+ {[%clk 0:00:06]}  Ke7 {[%clk 0:00:40]} 36. h4 {[%clk 0:00:00]}  Rg6 {[%clk 0:00:35]} 0-1

[Event "December 5 Early 2023"]
[Site "https://www.chess.com"]
[Date "2023.12.05"]
[Round "6"]
[White "Vorons, Uldis"]
[Black "Chirivi C, Jenny Astrid"]
[Result "1-0"]
[Board "168"]
[TimeControl "180+1"]
[WhiteFideId "11611758"]
[BlackFideId "4403061"]
[WhiteElo "2242"]
[BlackElo "2310"]
[WhiteTeam "LAT"]
[BlackTeam "COL"]
[WhiteClock "0:00:15"]
[BlackClock "0:00:00"]

1. e4 {[%clk 0:03:00]}  c5 {[%clk 0:02:58]} 2. Nf3 {[%clk 0:03:01]}  e6 {[%clk 0:02:57]} 3. g3 {[%clk 0:02:59]}  a6 {[%clk 0:02:51]} 4. Bg2 {[%clk 0:02:58]}  b5 {[%clk 0:02:51]} 5. O-O {[%clk 0:02:58]}  Bb7 {[%clk 0:02:52]} 6. Re1 {[%clk 0:02:56]}  d6 {[%clk 0:02:51]} 7. d4 {[%clk 0:02:57]}  cxd4 {[%clk 0:02:48]} 8. Nxd4 {[%clk 0:02:57]}  Nd7 {[%clk 0:02:42]} 9. Nc3 {[%clk 0:02:56]}  Be7 {[%clk 0:02:36]} 10. Qg4 {[%clk 0:02:48]}  Bf6 {[%clk 0:02:31]} 11. Be3 {[%clk 0:02:49]}  h5 {[%clk 0:02:24]} 12. Qe2 {[%clk 0:02:43]}  Qc7 {[%clk 0:02:20]} 13. Rad1 {[%clk 0:02:37]}  Be7 {[%clk 0:01:53]} 14. Ndxb5 {[%clk 0:02:02]}  axb5 {[%clk 0:01:51]} 15. Nxb5 {[%clk 0:02:03]}  Qb8 {[%clk 0:01:50]} 16. Qc4 {[%clk 0:02:02]}  Ra5 {[%clk 0:01:26]} 17. Bd2 {[%clk 0:01:30]}  Ne5 {[%clk 0:01:04]} 18. Qc7 {[%clk 0:01:23]}  Ra8 {[%clk 0:00:55]} 19. Bb4 {[%clk 0:01:10]}  Qxc7 {[%clk 0:00:42]} 20. Nxc7+ {[%clk 0:01:11]}  Kd7 {[%clk 0:00:42]} 21. Nxa8 {[%clk 0:01:10]}  Bxa8 {[%clk 0:00:42]} 22. f4 {[%clk 0:01:08]}  Nc4 {[%clk 0:00:35]} 23. b3 {[%clk 0:00:44]}  Nb6 {[%clk 0:00:28]} 24. c4 {[%clk 0:00:32]}  Kc7 {[%clk 0:00:20]} 25. e5 {[%clk 0:00:29]}  Bxg2 {[%clk 0:00:15]} 26. exd6+ {[%clk 0:00:28]}  Bxd6 {[%clk 0:00:14]} 27. Bxd6+ {[%clk 0:00:28]}  Kb7 {[%clk 0:00:14]} 28. Kxg2 {[%clk 0:00:28]}  Nf6 {[%clk 0:00:14]} 29. Be5 {[%clk 0:00:27]}  Ra8 {[%clk 0:00:10]} 30. Rd2 {[%clk 0:00:27]}  Ne8 {[%clk 0:00:08]} 31. Red1 {[%clk 0:00:26]}  g6 {[%clk 0:00:08]} 32. a4 {[%clk 0:00:24]}  Kc6 {[%clk 0:00:08]} 33. Kf3 {[%clk 0:00:20]}  f6 {[%clk 0:00:07]} 34. Bd4 {[%clk 0:00:20]}  Nd7 {[%clk 0:00:07]} 35. Re2 {[%clk 0:00:20]}  e5 {[%clk 0:00:04]} 36. fxe5 {[%clk 0:00:20]}  fxe5 {[%clk 0:00:04]} 37. Bxe5 {[%clk 0:00:21]}  Nxe5+ {[%clk 0:00:05]} 38. Rxe5 {[%clk 0:00:21]}  Nc7 {[%clk 0:00:05]} 39. c5 {[%clk 0:00:20]}  Rf8+ {[%clk 0:00:05]} 40. Ke4 {[%clk 0:00:20]}  Rf2 {[%clk 0:00:04]} 41. Rd6+ {[%clk 0:00:21]}  Kb7 {[%clk 0:00:04]} 42. Ke3 {[%clk 0:00:20]}  Rb2 {[%clk 0:00:03]} 43. Rb6+ {[%clk 0:00:19]}  Kc8 {[%clk 0:00:02]} 44. h4 {[%clk 0:00:15]}  Rg2 {[%clk 0:00:00]} 45. Rg5 {[%clk 0:00:15]} 1-0

[Event "December 5 Early 2023"]
[Site "https://www.chess.com"]
[Date "2023.12.05"]
[Round "6"]
[White "Colonetti, Fabio"]
[Black "Shubhi Gupta"]
[Result "0-1"]
[Board "169"]
[TimeControl "180+1"]
[WhiteFideId "897612"]
[BlackFideId "25195425"]
[WhiteElo "2278"]
[BlackElo "2292"]
[WhiteTeam "ITA"]
[BlackTeam "IND"]
[WhiteClock "0:01:10"]
[BlackClock "0:02:01"]

1. e4 {[%clk 0:03:00]}  e5 {[%clk 0:02:58]} 2. d4 {[%clk 0:02:58]}  exd4 {[%clk 0:02:58]} 3. Qxd4 {[%clk 0:02:59]}  Nc6 {[%clk 0:02:59]} 4. Qe3 {[%clk 0:03:00]}  Nf6 {[%clk 0:02:59]} 5. Nc3 {[%clk 0:03:00]}  Bb4 {[%clk 0:03:00]} 6. Bd2 {[%clk 0:03:00]}  O-O {[%clk 0:03:01]} 7. O-O-O {[%clk 0:02:56]}  Re8 {[%clk 0:03:01]} 8. Bd3 {[%clk 0:02:53]}  d5 {[%clk 0:02:58]} 9. Qg3 {[%clk 0:02:51]}  d4 {[%clk 0:02:38]} 10. Bh6 {[%clk 0:02:43]}  g6 {[%clk 0:02:34]} 11. Bc4 {[%clk 0:02:28]}  Bxc3 {[%clk 0:02:23]} 12. bxc3 {[%clk 0:02:26]}  Nxe4 {[%clk 0:02:20]} 13. Qf4 {[%clk 0:02:16]}  Qe7 {[%clk 0:02:11]} 14. Ne2 {[%clk 0:01:34]}  Nxc3 {[%clk 0:02:08]} 15. Nxc3 {[%clk 0:01:30]}  dxc3 {[%clk 0:02:07]} 16. Kb1 {[%clk 0:01:30]}  Be6 {[%clk 0:02:05]} 17. Rhe1 {[%clk 0:01:10]}  Qa3 {[%clk 0:02:01]} 0-1

[Event "December 5 Early 2023"]
[Site "https://www.chess.com"]
[Date "2023.12.05"]
[Round "6"]
[White "Yezhel, Valiantsin"]
[Black "Lopez Del Alamo, Antonio"]
[Result "1-0"]
[Board "173"]
[TimeControl "180+1"]
[WhiteFideId "13504983"]
[BlackFideId "2227339"]
[WhiteElo "2561"]
[BlackElo "2298"]
[WhiteTeam "FID"]
[BlackTeam "ESP"]
[WhiteClock "0:00:39"]
[BlackClock "0:00:00"]

1. e4 {[%clk 0:02:58]}  c5 {[%clk 0:02:18]} 2. Nc3 {[%clk 0:02:56]}  Nc6 {[%clk 0:02:15]} 3. g3 {[%clk 0:02:56]}  g6 {[%clk 0:02:13]} 4. Bg2 {[%clk 0:02:57]}  Bg7 {[%clk 0:02:13]} 5. f4 {[%clk 0:02:57]}  e6 {[%clk 0:02:07]} 6. d3 {[%clk 0:02:57]}  Nge7 {[%clk 0:02:07]} 7. Nf3 {[%clk 0:02:57]}  d5 {[%clk 0:02:07]} 8. O-O {[%clk 0:02:57]}  O-O {[%clk 0:02:07]} 9. h3 {[%clk 0:02:51]}  d4 {[%clk 0:02:03]} 10. Ne2 {[%clk 0:02:50]}  f5 {[%clk 0:02:04]} 11. e5 {[%clk 0:02:41]}  h6 {[%clk 0:01:56]} 12. c4 {[%clk 0:02:40]}  dxc3 {[%clk 0:01:55]} 13. bxc3 {[%clk 0:02:40]}  Kh7 {[%clk 0:01:51]} 14. Qc2 {[%clk 0:02:37]}  b6 {[%clk 0:01:50]} 15. a4 {[%clk 0:02:32]}  Ba6 {[%clk 0:01:45]} 16. Rd1 {[%clk 0:02:32]}  Qc7 {[%clk 0:01:39]} 17. Be3 {[%clk 0:02:25]}  Rfd8 {[%clk 0:01:37]} 18. Bf2 {[%clk 0:02:19]}  Rd7 {[%clk 0:01:36]} 19. d4 {[%clk 0:02:13]}  c4 {[%clk 0:01:29]} 20. Kh2 {[%clk 0:01:55]}  Nd5 {[%clk 0:01:26]} 21. Rg1 {[%clk 0:01:55]}  Na5 {[%clk 0:01:23]} 22. g4 {[%clk 0:01:52]}  Rf8 {[%clk 0:01:16]} 23. Nh4 {[%clk 0:01:50]}  Nb3 {[%clk 0:01:02]} 24. Raf1 {[%clk 0:01:44]}  Bb7 {[%clk 0:01:01]} 25. Nxg6 {[%clk 0:01:42]}  Kxg6 {[%clk 0:00:47]} 26. gxf5+ {[%clk 0:01:43]}  Kf7 {[%clk 0:00:47]} 27. fxe6+ {[%clk 0:01:34]}  Kxe6 {[%clk 0:00:44]} 28. Qg6+ {[%clk 0:01:31]}  Bf6 {[%clk 0:00:37]} 29. Bh4 {[%clk 0:01:07]}  Rg7 {[%clk 0:00:30]} 30. Qxh6 {[%clk 0:01:04]}  Rxg2+ {[%clk 0:00:25]} 31. Rxg2 {[%clk 0:01:02]}  Ne3 {[%clk 0:00:25]} 32. f5+ {[%clk 0:00:55]}  Kd7 {[%clk 0:00:23]} 33. Bxf6 {[%clk 0:00:48]}  Nxf1+ {[%clk 0:00:20]} 34. Kg1 {[%clk 0:00:49]}  Bxg2 {[%clk 0:00:18]} 35. Qxf8 {[%clk 0:00:49]}  Nbd2 {[%clk 0:00:07]} 36. Qe7+ {[%clk 0:00:44]}  Kc8 {[%clk 0:00:07]} 37. Qxc7+ {[%clk 0:00:42]}  Kxc7 {[%clk 0:00:07]} 38. Kxg2 {[%clk 0:00:42]}  Ne3+ {[%clk 0:00:06]} 39. Kg3 {[%clk 0:00:39]}  Nxf5+ {[%clk 0:00:00]} 40. Kf4 {[%clk 0:00:39]} 1-0